[Event "WYCC 2018 O16"]
[Site "Halkidiki"]
[Date "2018.10.27"]
[Round "8"]
[White "Olsen, Filip Boe"]
[Black "Semjonovs, Ilja"]
[Result "1/2-1/2"]
[ECO "A57"]
[WhiteElo "2335"]
[BlackElo "2245"]
[Annotator "NA"]
[PlyCount "117"]
[EventDate "2018.10.20"]
[EventType "swiss"]
[EventCountry "GRE"]
[SourceTitle "playchess.com"]
[Source "ChessBase"]
[SourceQuality "1"]
[TimeControl "40/5400+30:1800+30"]

1. d4 {[%emt 0:00:00]} Nf6 {[%emt 0:00:00]} 2. c4 {[%emt 0:00:00]} c5 {[%emt 0:00:05]} 3. d5 {[%emt 0:00:00]} b5 {[%emt 0:00:06]} 4. cxb5 {[%emt 0:00:00]} a6 {[%emt 0:00:06]} 5. e3 {[%emt 0:00:03]} axb5 {[%emt 0:04:14]} 6. Bxb5 {[%emt 0:00:16]} Ba6 {[%emt 0:00:40]} 7. Bxa6 {[%emt 0:00:11]} Rxa6 {[%emt 0:00:46]} 8. Nc3 {[%emt 0:00:23]} g6 {[%emt 0:01:16]} 9. Nf3 {[%emt 0:00:44]} Bg7 {[%emt 0:00:35]} 10. O-O {[%emt 0:00:20]} O-O {[%emt 0:00:28]} 11. e4 {[%emt 0:01:38]} d6 {[%emt 0:01:40]} 12. Qe2 {[%emt 0:03:02]} Qb6 {[%emt 0:10:42]} 13. e5 {[%emt 0:09:36]} dxe5 14. Nxe5 {[%emt 0:00:37]} e6 {[%emt 0:22:05]} 15. Nc4 {[%emt 0:07:08]} Qa7 {[%emt 0:11:18]} 16. dxe6 {[%emt 0:11:49]} Rxe6 {[%emt 0:00:13]} 17. Qc2 {[%emt 0:02:00]} Nc6 {[%emt 0:07:28]} 18. Qa4 {[%emt 0:05:42]} Qc7 {[%emt 0:09:27]} 19. Na3 {[%emt 0:11:50]} Nd4 {[%emt 0:07:48]} 20. Nab5 {[%emt 0:02:49]} Qe5 {[%emt 0:01:27]} 21. h3 {[%emt 0:05:24]} Ne4 {[%emt 0:10:34]} 22. Be3 {[%emt 0:06:13]} Rb8 {[%emt 0:06:15]} 23. Rab1 {[%emt 0:13:12]} Nxb5 {[%emt 0:00:33]} 24. Nxb5 {[%emt 0:00:12]} Reb6 {[%emt 0:00:21]} 25. Na3 {[%emt 0:01:22]} Qe6 {[%emt 0:02:54]} 26. Bf4 {[%emt 0:04:59]} Rb4 {[%emt 0:00:46]} 27. Qa7 {[%emt 0:01:34]} Re8 {[%emt 0:01:05]} 28. b3 {[%emt 0:03:40]} Nc3 {[%emt 0:00:21]} 29. Be3 {[%emt 0:00:57]} Nxb1 {[%emt 0:00:27]} 30. Rxb1 {[%emt 0:01:07]} Rbb8 {[%emt 0:00:29]} 31. Qxc5 {[%emt 0:00:26]} Bf8 {[%emt 0:00:29]} 32. Qc1 {[%emt 0:00:08]} Qa6 {[%emt 0:00:35]} 33. Nc2 {[%emt 0:01:38]} Rec8 {[%emt 0:00:44]} 34. Qd1 {[%emt 0:01:47]} Qxa2 {[%emt 0:00:21]} 35. Nd4 {[%emt 0:00:21]} Rd8 {[%emt 0:00:38]} 36. Ra1 {[%emt 0:00:43]} Qb2 {[%emt 0:00:09]} 37. Qc1 {[%emt 0:01:16]} Qxc1+ {[%emt 0:00:39]} 38. Rxc1 {[%emt 0:00:02]} Rd7 {[%emt 0:00:43]} 39. Rc4 {[%emt 0:00:32]} Rb4 {[%emt 0:00:24]} 40. Rxb4 {[%emt 0:00:00]} Bxb4 {[%emt 0:00:00]} 41. Nc6 {[%emt 0:02:21]} Rd1+ {[%emt 0:01:28]} 42. Kh2 {[%emt 0:01:44]} Bd6+ {[%emt 0:00:05]} 43. g3 {[%emt 0:00:15]} Rb1 {[%emt 0:00:05]} 44. b4 {[%emt 0:00:45]} Bxb4 {[%emt 0:01:20]} 45. Nxb4 {[%emt 0:00:22]} Rxb4 {[%emt 0:00:06]} 46. Bh6 {[%emt 0:01:46]} f6 {[%emt 0:00:54]} 47. h4 {[%emt 0:00:54]} Kf7 {[%emt 0:00:53]} 48. Be3 {[%emt 0:00:12]} Ke6 {[%emt 0:01:38]} 49. Kg2 {[%emt 0:00:13]} Kf5 {[%emt 0:01:05]} 50. Kf3 {[%emt 0:00:23]} h5 {[%emt 0:01:00]} 51. Bc5 {[%emt 0:00:33]} Rc4 {[%emt 0:01:48]} 52. Ba7 {[%emt 0:00:24]} Rc3+ {[%emt 0:00:55]} 53. Kg2 {[%emt 0:00:37]} Kg4 {[%emt 0:02:25]} 54. Bd4 {[%emt 0:01:07]} Rf3 {[%emt 0:01:01]} 55. Be3 {[%emt 0:00:13]} Rf5 {[%emt 0:02:10]} 56. Bd4 {[%emt 0:00:24]} Rf3 {[%emt 0:00:04]} 57. Be3 {[%emt 0:00:04]} f5 {[%emt 0:00:32]} 58. Bg5 {[%emt 0:00:46]} f4 {[%emt 0:01:45]} 59. Bxf4 {[%emt 0:00:42]} 1/2-1/2

[Event "WYCC 2018 O16"]
[Site "Halkidiki"]
[Date "2018.10.27"]
[Round "8"]
[White "Szpar, Milosz"]
[Black "Thilakarathne, G M H"]
[Result "1/2-1/2"]
[ECO "B85"]
[WhiteElo "2328"]
[BlackElo "2268"]
[Annotator "NA"]
[PlyCount "48"]
[EventDate "2018.10.20"]
[EventType "swiss"]
[EventCountry "GRE"]
[SourceTitle "playchess.com"]
[Source "ChessBase"]
[SourceQuality "1"]
[TimeControl "40/5400+30:1800+30"]

1. e4 {[%emt 0:00:00]} c5 {[%emt 0:00:00]} 2. Nf3 {[%emt 0:00:00]} e6 {[%emt 0:00:00]} 3. d4 {[%emt 0:00:00]} cxd4 {[%emt 0:00:00]} 4. Nxd4 {[%emt 0:00:00]} Nc6 {[%emt 0:00:00]} 5. Nc3 {[%emt 0:00:28]} Qc7 {[%emt 0:00:00]} 6. Be3 {[%emt 0:00:55]} a6 {[%emt 0:00:05]} 7. Be2 {[%emt 0:00:32]} Nf6 {[%emt 0:02:28]} 8. O-O {[%emt 0:00:35]} Be7 {[%emt 0:01:32]} 9. f4 {[%emt 0:03:09]} d6 {[%emt 0:00:46]} 10. Qe1 {[%emt 0:05:24]} O-O $11 {[%emt 0:09:05] LiveBook: 842 Games} 11. Qg3 {[%emt 0:09:13]} Nxd4 {[%emt 0:15:05]} 12. Bxd4 {[%emt 0:00:42]} b5 {[%emt 0:01:48]} 13. a3 {[%emt 0:04:09]} Bb7 {[%emt 0:02:28]} 14. Kh1 {[%emt 0:00:57]} Rad8 {[%emt 0:09:04]} 15. Bd3 {[%emt 0:11:17]} Bc6 {[%emt 0:16:57]} 16. Rae1 {[%emt 0:16:02]} Qb7 {[%emt 0:09:46]} 17. Qh3 {[%emt 0:05:19]} h6 {[%emt 0:02:45]} 18. Re3 {[%emt 0:04:12]} Kh8 {[%emt 0:15:55]} 19. Rg3 {[%emt 0:07:53]} b4 {[%emt 0:06:14]} 20. axb4 {[%emt 0:07:10]} Qxb4 {[%emt 0:00:08]} 21. Ne2 {[%emt 0:00:10]} Bb5 {[%emt 0:03:40]} 22. Bc3 {[%emt 0:08:08]} Qc5 {[%emt 0:00:31]} 23. e5 {[%emt 0:09:37]} dxe5 {[%emt 0:00:15]} 24. fxe5 {[%emt 0:00:24]} Nh7 {[%emt 0:00:59]} 1/2-1/2

[Event "WYCC 2018 O16"]
[Site "Halkidiki"]
[Date "2018.10.27"]
[Round "8"]
[White "Katopodis, Dimitrios"]
[Black "Lund, Gunnar"]
[Result "1-0"]
[ECO "A40"]
[WhiteElo "2310"]
[BlackElo "2227"]
[Annotator "NA"]
[PlyCount "93"]
[EventDate "2018.10.20"]
[EventType "swiss"]
[EventCountry "GRE"]
[SourceTitle "playchess.com"]
[Source "ChessBase"]
[SourceQuality "1"]
[TimeControl "40/5400+30:1800+30"]

1. d4 {[%emt 0:00:00]} g6 {[%emt 0:00:58]} 2. e4 {[%emt 0:00:18]} d6 {[%emt 0:00:18]} 3. Nf3 {[%emt 0:02:23]} Nf6 {[%emt 0:00:37]} 4. Bd3 {[%emt 0:01:04]} Bg7 {[%emt 0:00:30]} 5. h3 {[%emt 0:01:55]} O-O {[%emt 0:01:41]} 6. O-O {[%emt 0:01:26]} c6 {[%emt 0:05:14]} 7. Re1 {[%emt 0:03:25]} Qc7 {[%emt 0:02:35]} 8. e5 {[%emt 0:05:54]} dxe5 {[%emt 0:04:10]} 9. dxe5 {[%emt 0:02:29]} Nd5 {[%emt 0:00:29]} 10. a3 {[%emt 0:06:55]} Nd7 {[%emt 0:04:11]} 11. c4 {[%emt 0:05:34]} N5b6 {[%emt 0:00:24]} 12. Qe2 {[%emt 0:02:11]} Nc5 {[%emt 0:05:58]} 13. Bc2 {[%emt 0:00:38]} a5 {[%emt 0:00:19]} 14. Be3 {[%emt 0:03:27]} Nbd7 {[%emt 0:00:36]} 15. Nc3 {[%emt 0:04:53]} b6 {[%emt 0:04:25]} 16. Bf4 {[%emt 0:04:38]} a4 {[%emt 0:06:56]} 17. Rad1 {[%emt 0:02:35]} Ne6 {[%emt 0:00:50]} 18. Bc1 {[%emt 0:01:06]} Ndc5 {[%emt 0:00:23]} 19. Ne4 {[%emt 0:05:40]} Nxe4 {[%emt 0:02:39]} 20. Qxe4 {[%emt 0:00:36]} Bb7 {[%emt 0:01:27]} 21. Ng5 {[%emt 0:02:50]} Nxg5 {[%emt 0:13:53]} 22. Bxg5 {[%emt 0:00:11]} Bc8 {[%emt 0:00:54]} 23. Qe3 {[%emt 0:07:25]} Be6 {[%emt 0:02:30]} 24. c5 {[%emt 0:13:00]} b5 {[%emt 0:03:14]} 25. f4 {[%emt 0:01:05]} Bd5 {[%emt 0:00:50]} 26. f5 {[%emt 0:01:09]} f6 {[%emt 0:07:18]} 27. Bf4 {[%emt 0:03:08]} fxe5 {[%emt 0:05:21]} 28. Bxe5 {[%emt 0:00:24]} Bxe5 {[%emt 0:00:14]} 29. Qxe5 {[%emt 0:00:15]} Qxe5 {[%emt 0:00:43]} 30. Rxe5 {[%emt 0:00:06]} gxf5 {[%emt 0:01:06]} 31. Bxf5 {[%emt 0:02:13]} Rf6 {[%emt 0:00:09]} 32. Rde1 {[%emt 0:02:34]} Re8 {[%emt 0:02:01]} 33. Bd7 {[%emt 0:02:28]} Ref8 {[%emt 0:00:14]} 34. Rxe7 {[%emt 0:01:54]} Rf2 {[%emt 0:00:05]} 35. R7e2 {[%emt 0:01:23]} Rxe2 {[%emt 0:02:02]} 36. Rxe2 {[%emt 0:00:08]} Rd8 {[%emt 0:00:08]} 37. Re8+ {[%emt 0:05:27]} Rxe8 {[%emt 0:00:01]} 38. Bxe8 {[%emt 0:00:09]} Kg7 {[%emt 0:00:12]} 39. Kf2 {[%emt 0:01:05]} Kf6 {[%emt 0:00:01]} 40. g4 {[%emt 0:00:00]} Ke5 {[%emt 0:00:00]} 41. Ke3 {[%emt 0:05:34]} Bg2 {[%emt 0:00:55]} 42. h4 {[%emt 0:00:48]} Kd5 {[%emt 0:00:01]} 43. g5 {[%emt 0:02:29]} Kxc5 {[%emt 0:02:33]} 44. h5 {[%emt 0:00:38]} Bd5 {[%emt 0:01:27]} 45. g6 {[%emt 0:01:02]} hxg6 {[%emt 0:00:03]} 46. hxg6 {[%emt 0:00:53]} Be6 {[%emt 0:16:01]} 47. Bf7 {[%emt 0:00:20]} 1-0

[Event "WYCC 2018 O16"]
[Site "Halkidiki"]
[Date "2018.10.27"]
[Round "8"]
[White "Mis, Mieszko"]
[Black "Carlsson, Ludvig"]
[Result "0-1"]
[ECO "D71"]
[WhiteElo "2307"]
[BlackElo "2058"]
[Annotator "NA"]
[PlyCount "92"]
[EventDate "2018.10.20"]
[EventType "swiss"]
[EventCountry "GRE"]
[SourceTitle "playchess.com"]
[Source "ChessBase"]
[SourceQuality "1"]
[TimeControl "40/5400+30:1800+30"]

1. c4 {[%emt 0:00:00]} g6 {[%emt 0:00:08]} 2. d4 {[%emt 0:01:06]} Nf6 {[%emt 0:00:13]} 3. g3 {[%emt 0:00:20]} c5 {[%emt 0:00:18]} 4. d5 {[%emt 0:01:48]} d6 {[%emt 0:00:46]} 5. Bg2 {[%emt 0:03:33]} b5 {[%emt 0:01:08]} 6. cxb5 {[%emt 0:04:41]} a6 {[%emt 0:00:10]} 7. b6 {[%emt 0:03:34]} Qxb6 {[%emt 0:01:15]} 8. Nf3 {[%emt 0:02:18]} Bg7 {[%emt 0:01:51]} 9. O-O {[%emt 0:00:23]} a5 {[%emt 0:07:20]} 10. e4 {[%emt 0:07:47]} O-O {[%emt 0:03:23]} 11. e5 {[%emt 0:06:51]} Ng4 {[%emt 0:05:26]} 12. e6 {[%emt 0:11:06]} fxe6 {[%emt 0:10:07]} 13. Nc3 {[%emt 0:05:44]} e5 {[%emt 0:05:01]} 14. Ng5 {[%emt 0:05:09]} Nf6 {[%emt 0:00:51]} 15. h3 {[%emt 0:10:05]} h6 {[%emt 0:04:54]} 16. Nf3 {[%emt 0:00:58]} e4 {[%emt 0:05:49]} 17. Nd2 {[%emt 0:03:38]} e3 {[%emt 0:00:09]} 18. fxe3 {[%emt 0:00:08]} Ba6 {[%emt 0:00:15]} 19. Rf2 {[%emt 0:01:28]} Nbd7 {[%emt 0:06:26]} 20. Nf3 {[%emt 0:02:20]} Kh7 {[%emt 0:07:36]} 21. Qc2 {[%emt 0:02:35]} Rab8 {[%emt 0:02:18]} 22. Rb1 {[%emt 0:06:01]} Qb4 {[%emt 0:03:58]} 23. Bd2 {[%emt 0:02:07]} Qb7 {[%emt 0:02:33]} 24. e4 {[%emt 0:03:27]} Nh5 {[%emt 0:02:01]} 25. Kh2 {[%emt 0:10:06]} Ne5 {[%emt 0:03:08]} 26. g4 {[%emt 0:01:55]} Bd3 {[%emt 0:00:49]} 27. Qd1 {[%emt 0:01:39]} Bxb1 {[%emt 0:03:40]} 28. gxh5 {[%emt 0:00:20]} Qxb2 {[%emt 0:01:42]} 29. hxg6+ {[%emt 0:00:27]} Nxg6 {[%emt 0:01:32]} 30. Be1 {[%emt 0:01:07]} Qxf2 {[%emt 0:01:16]} 31. Bxf2 {[%emt 0:00:10]} Bxc3 {[%emt 0:00:06]} 32. Bg3 {[%emt 0:00:49]} Rb2 {[%emt 0:01:04]} 33. Kh1 {[%emt 0:01:11]} Rxg2 {[%emt 0:00:16]} 34. Kxg2 {[%emt 0:01:22]} Bxe4 {[%emt 0:00:05]} 35. Qa4 {[%emt 0:00:41]} Bxf3+ {[%emt 0:00:13]} 36. Kh2 {[%emt 0:00:11]} Bxd5 {[%emt 0:00:29]} 37. Qd7 {[%emt 0:00:25]} Rf7 {[%emt 0:01:25]} 38. h4 {[%emt 0:00:49]} Ne5 {[%emt 0:00:44]} 39. Qe8 {[%emt 0:00:17]} Bxa2 {[%emt 0:01:17]} 40. h5 {[%emt 0:00:00]} Bb3 {[%emt 0:00:00]} 41. Qa8 {[%emt 0:01:55]} Ng4+ {[%emt 0:06:56]} 42. Kh3 {[%emt 0:00:11]} Nf6 {[%emt 0:00:07]} 43. Qf3 {[%emt 0:01:08]} Be6+ {[%emt 0:00:09]} 44. Kh4 {[%emt 0:00:10]} Nd5 {[%emt 0:00:26]} 45. Qe4+ {[%emt 0:00:31]} Bf5 {[%emt 0:00:06]} 46. Qxd5 {[%emt 0:00:03]} Bf6# 0-1

[Event "WYCC 2018 O16"]
[Site "Halkidiki"]
[Date "2018.10.27"]
[Round "8"]
[White "Milosevic, Milos"]
[Black "Shubin, Kirill"]
[Result "1-0"]
[ECO "C03"]
[WhiteElo "2306"]
[BlackElo "2369"]
[Annotator "NA"]
[PlyCount "61"]
[EventDate "2018.10.20"]
[EventType "swiss"]
[EventCountry "GRE"]
[SourceTitle "playchess.com"]
[Source "ChessBase"]
[SourceQuality "1"]
[TimeControl "40/5400+30:1800+30"]

1. e4 {[%emt 0:00:00]} e6 {[%emt 0:00:00]} 2. d4 {[%emt 0:00:00]} d5 {[%emt 0:00:00]} 3. Nd2 {[%emt 0:00:00]} Nc6 {[%emt 0:00:00]} 4. c3 {[%emt 0:00:00]} Nf6 {[%emt 0:03:04]} 5. e5 {[%emt 0:00:24]} Nd7 {[%emt 0:00:04]} 6. Bd3 {[%emt 0:01:44]} Ne7 {[%emt 0:05:18]} 7. Ne2 {[%emt 0:02:10]} h5 {[%emt 0:03:39]} 8. Nf3 {[%emt 0:01:22]} c5 {[%emt 0:01:34]} 9. a3 {[%emt 0:02:15]} g6 {[%emt 0:06:08]} 10. Bg5 $16 {[%emt 0:01:21]} Qc7 {[%emt 0:05:23]} 11. b4 {[%emt 0:02:04]} b6 {[%emt 0:04:43]} 12. O-O {[%emt 0:01:28]} Bb7 {[%emt 0:05:21]} 13. Rb1 {[%emt 0:06:21]} Bg7 {[%emt 0:04:37]} 14. Qd2 {[%emt 0:01:54]} c4 {[%emt 0:06:43]} 15. Bc2 {[%emt 0:00:08]} Nf8 {[%emt 0:01:10]} 16. a4 {[%emt 0:01:45]} a6 {[%emt 0:03:19]} 17. Qf4 {[%emt 0:03:28]} Nh7 {[%emt 0:05:55]} 18. Bh4 {[%emt 0:03:46]} Ng8 {[%emt 0:11:55]} 19. Qg3 {[%emt 0:04:13]} Nf8 {[%emt 0:01:41]} 20. Nf4 {[%emt 0:01:26]} Qd7 {[%emt 0:04:21]} 21. Rfe1 {[%emt 0:02:16]} Bh6 {[%emt 0:02:21]} 22. Re2 {[%emt 0:10:45]} Ne7 {[%emt 0:02:57]} 23. Bf6 {[%emt 0:00:48]} Rg8 {[%emt 0:00:04]} 24. Qh4 {[%emt 0:14:30]} Bc6 {[%emt 0:01:55]} 25. a5 {[%emt 0:01:13]} bxa5 {[%emt 0:00:10]} 26. bxa5 {[%emt 0:00:15]} Bb5 {[%emt 0:00:02]} 27. Ng5 {[%emt 0:02:20]} Bg7 {[%emt 0:01:53]} 28. Qh3 {[%emt 0:07:23]} Nc6 {[%emt 0:03:21]} 29. Nxd5 {[%emt 0:08:39]} exd5 {[%emt 0:00:50]} 30. e6 {[%emt 0:00:03]} fxe6 {[%emt 0:00:59]} 31. Rxe6+ {[%emt 0:00:29]} 1-0

[Event "WYCC 2018 O16"]
[Site "Halkidiki"]
[Date "2018.10.27"]
[Round "8"]
[White "Travadon, Loic"]
[Black "Velkovski, Kristijan"]
[Result "1-0"]
[ECO "A06"]
[WhiteElo "2293"]
[BlackElo "1887"]
[Annotator "NA"]
[PlyCount "109"]
[EventDate "2018.10.20"]
[EventType "swiss"]
[EventCountry "GRE"]
[SourceTitle "playchess.com"]
[Source "ChessBase"]
[SourceQuality "1"]
[TimeControl "40/5400+30:1800+30"]

1. Nf3 {[%emt 0:00:00]} d5 {[%emt 0:00:00]} 2. g3 {[%emt 0:00:00]} Nf6 {[%emt 0:00:18]} 3. Bg2 {[%emt 0:00:00]} e6 {[%emt 0:00:55]} 4. O-O {[%emt 0:00:00]} Be7 {[%emt 0:00:56]} 5. c4 {[%emt 0:00:00]} c6 {[%emt 0:00:30]} 6. b3 {[%emt 0:00:41]} O-O {[%emt 0:00:19]} 7. Bb2 {[%emt 0:00:05]} Nbd7 {[%emt 0:01:49]} 8. d3 {[%emt 0:04:08]} b6 {[%emt 0:03:22]} 9. e4 {[%emt 0:00:47]} Bb7 {[%emt 0:05:57]} 10. e5 {[%emt 0:00:36]} Ne8 {[%emt 0:00:27]} 11. Qe2 {[%emt 0:00:58]} g6 {[%emt 0:05:39]} 12. h4 $14 {[%emt 0:01:44]} Ng7 {[%emt 0:02:02]} 13. Nbd2 {[%emt 0:01:28]} Rc8 {[%emt 0:03:03]} 14. Rad1 {[%emt 0:01:17]} Re8 {[%emt 0:01:21]} 15. Rfe1 {[%emt 0:00:30]} f5 {[%emt 0:10:11]} 16. exf6 {[%emt 0:00:07]} Bxf6 {[%emt 0:00:10]} 17. Bxf6 {[%emt 0:00:36]} Qxf6 {[%emt 0:00:56]} 18. Bh3 {[%emt 0:02:01]} Re7 {[%emt 0:06:43]} 19. Nh2 {[%emt 0:03:13]} Nf5 {[%emt 0:03:33]} 20. Bxf5 {[%emt 0:04:05]} Qxf5 {[%emt 0:07:36]} 21. Ng4 {[%emt 0:02:20]} Kg7 {[%emt 0:04:13]} 22. Ne3 {[%emt 0:01:19]} Qf7 {[%emt 0:04:34]} 23. Nf3 {[%emt 0:00:20]} h6 {[%emt 0:00:53]} 24. Ng4 {[%emt 0:00:23]} Rf8 {[%emt 0:01:19]} 25. Nd4 {[%emt 0:02:01]} e5 {[%emt 0:01:58]} 26. f4 {[%emt 0:02:00]} e4 {[%emt 0:07:09]} 27. cxd5 {[%emt 0:03:14]} cxd5 {[%emt 0:00:11]} 28. dxe4 {[%emt 0:02:11]} Rxe4 {[%emt 0:00:50]} 29. Qb2 {[%emt 0:00:09]} Kh7 {[%emt 0:01:36]} 30. Rxe4 {[%emt 0:01:30]} dxe4 {[%emt 0:00:19]} 31. Qd2 {[%emt 0:02:57]} Nf6 {[%emt 0:03:33]} 32. Nxf6+ {[%emt 0:05:25]} Qxf6 {[%emt 0:00:06]} 33. Nc2 {[%emt 0:00:11]} Rf7 {[%emt 0:01:30]} 34. Ne3 {[%emt 0:00:15]} Qe6 {[%emt 0:03:01]} 35. Kg2 {[%emt 0:02:47]} Bc8 {[%emt 0:02:10]} 36. Rh1 {[%emt 0:02:18]} Rd7 {[%emt 0:00:52]} 37. Qc1 {[%emt 0:00:14]} Rd3 {[%emt 0:01:04]} 38. Kf2 {[%emt 0:05:58]} Qd7 {[%emt 0:05:33]} 39. Rd1 {[%emt 0:00:12]} h5 {[%emt 0:03:53]} 40. Rxd3 {[%emt 0:00:00]} exd3 {[%emt 0:00:00]} 41. Ke1 {[%emt 0:02:02]} Ba6 {[%emt 0:06:24]} 42. Kd2 {[%emt 0:02:05]} Qb7 {[%emt 0:05:11]} 43. f5 {[%emt 0:05:20]} gxf5 {[%emt 0:00:32]} 44. Qf1 {[%emt 0:00:17]} Qe4 {[%emt 0:02:16]} 45. Qxf5+ {[%emt 0:00:32]} Qxf5 {[%emt 0:00:06]} 46. Nxf5 {[%emt 0:00:04]} Bb5 {[%emt 0:04:36]} 47. Nd6 {[%emt 0:00:13]} Bc6 {[%emt 0:00:19]} 48. Kxd3 {[%emt 0:00:30]} Kg6 {[%emt 0:00:25]} 49. Ke3 {[%emt 0:01:52]} a6 {[%emt 0:01:25]} 50. Nc8 {[%emt 0:00:29]} Kf6 {[%emt 0:00:46]} 51. Nxb6 {[%emt 0:00:07]} Kf5 {[%emt 0:00:28]} 52. Nc4 {[%emt 0:00:07]} Bd5 {[%emt 0:01:09]} 53. Nd2 {[%emt 0:00:14]} Kg4 {[%emt 0:00:45]} 54. Kf2 {[%emt 0:00:05]} a5 {[%emt 0:01:03]} 55. Nc4 {[%emt 0:00:13]} 1-0

[Event "WYCC 2018 O16"]
[Site "Halkidiki"]
[Date "2018.10.27"]
[Round "8"]
[White "Peng, Hongchi"]
[Black "Koustav Chatterjee"]
[Result "0-1"]
[ECO "C11"]
[WhiteElo "2273"]
[BlackElo "2344"]
[Annotator "NA"]
[PlyCount "108"]
[EventDate "2018.10.20"]
[EventType "swiss"]
[EventCountry "GRE"]
[SourceTitle "playchess.com"]
[Source "ChessBase"]
[SourceQuality "1"]
[TimeControl "40/5400+30:1800+30"]

1. e4 {[%emt 0:00:00]} e6 {[%emt 0:02:44]} 2. d4 {[%emt 0:00:00]} d5 {[%emt 0:00:24]} 3. Nc3 {[%emt 0:00:00]} Nf6 {[%emt 0:00:07]} 4. e5 {[%emt 0:00:06]} Nfd7 {[%emt 0:00:09]} 5. f4 {[%emt 0:00:02]} c5 {[%emt 0:00:17]} 6. Nf3 {[%emt 0:00:08]} Nc6 {[%emt 0:00:09]} 7. Be3 {[%emt 0:00:06]} cxd4 {[%emt 0:00:59]} 8. Nxd4 {[%emt 0:00:02]} Bc5 {[%emt 0:00:05]} 9. Qd2 {[%emt 0:00:29]} O-O {[%emt 0:00:12]} 10. O-O-O {[%emt 0:00:11]} a6 {[%emt 0:00:21]} 11. Kb1 {[%emt 0:00:46]} Nxd4 {[%emt 0:01:23]} 12. Bxd4 {[%emt 0:00:01]} b5 {[%emt 0:00:11]} 13. Bxc5 {[%emt 0:01:23]} Nxc5 {[%emt 0:00:09]} 14. Qd4 {[%emt 0:00:54]} Qb6 {[%emt 0:04:46]} 15. Ne2 $15 {[%emt 0:13:45]} (15. f5 $5) 15... b4 {[%emt 0:09:58]} 16. Nc1 {[%emt 0:00:06]} Rb8 {[%emt 0:02:00]} 17. Bd3 {[%emt 0:06:04]} a5 {[%emt 0:11:46]} 18. Nb3 {[%emt 0:01:46]} Nxb3 {[%emt 0:06:35]} 19. Qxb6 {[%emt 0:00:05]} Nd2+ {[%emt 0:01:22]} 20. Rxd2 {[%emt 0:00:03]} Rxb6 {[%emt 0:00:03]} 21. Rc1 {[%emt 0:00:05]} Bb7 {[%emt 0:09:09]} 22. c3 {[%emt 0:19:10]} b3 {[%emt 0:09:06]} 23. axb3 {[%emt 0:06:21]} Rxb3 {[%emt 0:01:14]} 24. Kc2 {[%emt 0:00:55]} Rb6 {[%emt 0:05:33]} 25. Ra1 {[%emt 0:00:33]} Ra8 {[%emt 0:03:32]} 26. Kc1 {[%emt 0:05:46]} d4 {[%emt 0:08:43]} 27. cxd4 {[%emt 0:01:42]} Rb4 {[%emt 0:00:05]} 28. f5 {[%emt 0:01:58]} g6 {[%emt 0:08:54]} 29. fxe6 {[%emt 0:01:09]} fxe6 {[%emt 0:00:05]} 30. Bc2 {[%emt 0:01:30]} a4 {[%emt 0:04:31]} 31. Ra3 {[%emt 0:04:05]} Bd5 {[%emt 0:00:07]} 32. Kb1 {[%emt 0:08:07]} Bc6 {[%emt 0:06:18]} 33. Rc3 {[%emt 0:02:59]} Bd5 {[%emt 0:00:19]} 34. Ka1 {[%emt 0:01:49]} Rf8 {[%emt 0:00:18]} 35. Bd1 {[%emt 0:10:32]} Rf1 {[%emt 0:00:17]} 36. Rc1 {[%emt 0:00:55]} Rc4 {[%emt 0:00:55]} 37. Rxc4 {[%emt 0:06:37]} Bxc4 {[%emt 0:00:13]} 38. b4 {[%emt 0:00:01]} Bb3 {[%emt 0:00:39]} 39. d5 {[%emt 0:02:05]} Rxd1+ {[%emt 0:01:27]} 40. Rxd1 {[%emt 0:00:00]} Bxd1 {[%emt 0:00:00]} 41. d6 {[%emt 0:05:34]} Kf8 {[%emt 0:01:29]} 42. b5 {[%emt 0:00:45]} Be2 {[%emt 0:00:09]} 43. b6 {[%emt 0:00:15]} Ba6 {[%emt 0:00:04]} 44. Kb2 {[%emt 0:00:18]} Bb7 {[%emt 0:00:16]} 45. g4 {[%emt 0:01:07]} Ke8 {[%emt 0:00:19]} 46. Ka3 {[%emt 0:01:00]} Bc6 {[%emt 0:00:15]} 47. h4 {[%emt 0:03:16]} Kd7 {[%emt 0:01:25]} 48. b7 {[%emt 0:00:07]} Bxb7 {[%emt 0:00:02]} 49. Kxa4 {[%emt 0:00:02]} Kc6 {[%emt 0:00:05]} 50. Kb4 {[%emt 0:00:17]} Kb6 {[%emt 0:00:55]} 51. Kc4 {[%emt 0:00:12]} Bc6 {[%emt 0:00:05]} 52. Kd4 {[%emt 0:00:51]} Kb5 {[%emt 0:00:17]} 53. Ke3 {[%emt 0:00:11]} Kc5 {[%emt 0:00:05]} 54. Kf4 {[%emt 0:00:21]} h6 {[%emt 0:00:06]} 0-1